{"text_format":"3","workbook":"xlsx","n_sheets":2,"sheets":["list","data"],"not_rendered":{"external_links":1},"read":"whole","date_system":"1900"}

{"sheet":"list","index":0,"n_rows":18,"n_cols":16,"rows_kept":18}
["№","Фамлия","Имя","Отчество","Пол","Дата рождения","Участник с ОВЗ","Класс","Класс участия","Балл","Макс. Балл","Статус","Призер МЭ прошлого года","Учитель","Место работы учителя","Направление, вид практики  по технологии"]
[1,3,4,5,6,7,8,9,10,11,12,13,14,15,16,17]
[1,{"$f":"[1]list!C302","v":"Фаляхов "},{"$f":"[1]list!D302","v":"Карим "},{"$f":"[1]list!E302","v":"Рамисович "},"м",{"$f":"[1]list!$G$302","v":"2012-11-17"},"нет",4,4,24,32,"призёр",{"$f":"G3","v":"нет"},"Зиганшина Л.А.","МБОУ \"Сокуровская СОШ им.Г.Р.Державина\""]
[2,{"$f":"[1]list!C333","v":"Галиева"},{"$f":"[1]list!D333","v":"Малика"},{"$f":"[1]list!E333","v":"Маратовна"},{"$f":"[1]list!F333","v":"ж"},"10.06.2012","нет",5,5,26,32,"победитель","нет","Платонова Ф.Н.","МБОУ \"Сокуровская СОШ им.Г.Р.Державина\""]
[1,{"$f":"[1]list!C406","v":"Валиуллин "},{"$f":"[1]list!D406","v":" Айнур \n "},{"$f":"[1]list!E406","v":"\nРустемович "},{"$f":"[1]list!F406","v":"м"},"18.07.2011",{"$f":"[1]list!H406","v":"нет"},"6",6,24,36,"призёр","нет","Платонова Ф.Н.","МБОУ \"Сокуровская СОШ им.Г.Р.Державина\""]
[2,{"$f":"[1]list!C426","v":"Каримов "},{"$f":"[1]list!D426","v":"Расим"},{"$f":"[1]list!E426","v":"Денсович"},{"$f":"[1]list!F426","v":"м"},{"$f":"[1]list!G426","v":"2011-03-13"},{"$f":"[1]list!H426","v":"нет"},6,6,27,36,{"$f":"$L$9","v":"призёр"},"да","Платонова Ф.Н.","МБОУ \"Сокуровская СОШ им.Г.Р.Державина\""]
[3,{"$f":"[1]list!C387","v":"Мингалиева "},{"$f":"[1]list!D387","v":"Азалия "},{"$f":"[1]list!E387","v":"Марселевна"},{"$f":"[1]list!F387","v":"ж"},{"$f":"[1]list!G387","v":"2011-09-27"},{"$f":"[1]list!H387","v":"нет"},6,6,29,36,"призёр","нет","Платонова Ф.Н.","МБОУ \"Сокуровская СОШ им.Г.Р.Державина\""]
[4,{"$f":"[1]list!C457","v":"Авхадиева"},{"$f":"[1]list!D457","v":"Дильбар"},{"$f":"[1]list!E457","v":"Ильшатовна"},{"$f":"[1]list!F457","v":"ж"},"09.03.2010",{"$f":"[1]list!H457","v":"нет"},"7",7,19,40,"участник","нет","Платонова Ф.Н.","МБОУ \"Сокуровская СОШ им.Г.Р.Державина\""]
[5,{"$f":"[1]list!C460","v":"Зиганшин"},{"$f":"[1]list!D460","v":"Данис"},{"$f":"[1]list!E460","v":"Ильназович"},{"$f":"[1]list!F460","v":"м"},{"$f":"[1]list!$G$460","v":"2010-01-25"},{"$f":"[1]list!H460","v":"нет"},"7","7",25,40,"призёр","да","Платонова Ф.Н.","МБОУ \"Сокуровская СОШ им.Г.Р.Державина\""]
[6,{"$f":"[1]list!C513","v":"Садыкова "},{"$f":"[1]list!D513","v":"Рузина"},{"$f":"[1]list!E513","v":"Рушатовна"},{"$f":"[1]list!F513","v":"ж"},{"$f":"[1]list!G513","v":"2009-05-22"},{"$f":"[1]list!H513","v":"нет"},8,8,26,42,"призёр","да","Платонова Ф.Н.","МБОУ \"Сокуровская СОШ им.Г.Р.Державина\""]
[7,{"$f":"[1]list!C522","v":"Хакимуллин "},{"$f":"[1]list!D522","v":"Рузаль"},{"$f":"[1]list!E522","v":"Равилевич"},{"$f":"[1]list!F522","v":"м"},{"$f":"[1]list!G522","v":"2009-06-09"},{"$f":"[1]list!H522","v":"нет"},8,8,16,42,"участник","нет","Платонова Ф.Н.","МБОУ \"Сокуровская СОШ им.Г.Р.Державина\""]
[8,{"$f":"[1]list!C503","v":"Данилова "},{"$f":"[1]list!D503","v":"Наталья"},{"$f":"[1]list!E503","v":"Михайловна"},{"$f":"[1]list!F503","v":"ж"},{"$f":"[1]list!G503","v":"2009-09-29"},{"$f":"[1]list!H503","v":"нет"},8,8,20,42,"участник",{"$f":"$G$12","v":"нет"},"Платонова Ф.Н.","МБОУ \"Сокуровская СОШ им.Г.Р.Державина\""]
[9]
[10]
[11]
[12]
[13]
[14]

{"sheet":"data","index":1,"n_rows":25,"n_cols":3,"rows_kept":25,"hidden":true}
[]
["Техника, технология и техническое творчество .  Ручная обработка древесины"]
["Техника, технология и техническое творчество .  Ручная обработка металла"]
["Техника, технология и техническое творчество .  Механическая обработка древесины"]
["Техника, технология и техническое творчество .  Механическая обработка металла"]
["Техника, технология и техническое творчество .  Электротехника"]
["Техника, технология и техническое творчество .  Робототехника"]
["Техника, технология и техническое творчество .  3d - моделирование и печать"]
["Техника, технология и техническое творчество .  Обработка материалов на лазерно-гравировальной машине"]
["Техника, технология и техническое творчество .  Промышленный дизайн"]
["Культура дома, дизайн и технологии .  Обработка швейного изделия или узла + моделирование швейных изделий"]
["Культура дома, дизайн и технологии .  Обработка швейного изделия или узла + моделирование швейных изделий с использованием графических редакторов"]
["Культура дома, дизайн и технологии .  Обработка швейного изделия или узла на швейно-вышивальном оборудовании + моделирование швейных изделий"]
["Культура дома, дизайн и технологии .  Обработка швейного изделия или узла на швейно-вышивальном оборудовании + моделирование швейных изделий с использованием графических редакторов"]
["Культура дома, дизайн и технологии .  Робототехника"]
["Культура дома, дизайн и технологии .  3d - моделирование и печать"]
["Культура дома, дизайн и технологии .  Обработка материалов на лазерно-гравировальной машине"]
["Культура дома, дизайн и технологии .  Промышленный дизайн"]
["Роботехника .  "]
["Информационная безопасность ."]
[]
[]
["участник"]
["призер",null,"да"]
["победитель"]